bitfinex/quotes_SOLUSD_20230105
["timestamp","ask_amount","ask_price","bid_price","bid_amount"]
[1672927962040,20.0,13.192,13.183,20.0]
[1672927962259,20.0,13.193,13.184,20.0]
[1672927962474,73.89,13.194,13.184,20.0]
[1672927963535,73.89,13.194,13.183,20.0]
[1672927966355,73.89,13.194,13.182,40.0]
[1672927967004,73.89,13.194,13.182,20.0]
[1672927967736,20.0,13.193,13.182,20.0]
[1672927967929,6.55,13.19,13.182,20.0]
[1672927968258,6.55,13.19,13.17,6.5]
[1672927968259,17.0,13.189,13.17,6.5]
[1672927968457,56.92,13.188,13.17,6.5]
[1672927968670,6.5,13.18,13.169,20.0]
[1672927971411,6.5,13.18,13.175,20.0]
[1672927971623,20.0,13.184,13.175,20.0]
[1672927971835,17.0,13.183,13.175,20.0]
[1672927972239,20.0,13.184,13.175,20.0]
[1672927973005,20.0,13.184,13.176,20.0]
[1672927973186,20.0,13.184,13.171,20.0]
[1672927973398,20.0,13.184,13.172,17.0]
[1672927973944,17.0,13.183,13.172,17.0]
[1672927974262,17.0,13.183,13.171,17.0]
[1672927974454,17.0,13.183,13.172,20.0]
[1672927974663,17.0,13.183,13.173,17.0]
[1672927974878,17.0,13.183,13.174,20.0]
[1672927977622,20.0,13.185,13.174,20.0]
[1672927977818,20.0,13.185,13.175,17.0]
[1672927978569,20.0,13.185,13.174,20.0]
[1672927978801,6.5,13.18,13.173,20.0]
[1672927979096,6.5,13.18,13.169,20.0]
[1672927979307,6.5,13.18,13.169,42.41737149]
[1672927979519,6.5,13.18,13.17,22.41737149]
[1672927979711,6.5,13.18,13.171,40.0]
[1672927979918,6.5,13.18,13.172,17.0]
[1672927980136,6.5,13.18,13.173,20.0]
[1672927989293,194.6873,13.183,13.173,20.0]
[1672927990555,20.0,13.181,13.169,20.0]
[1672927991923,20.0,13.181,13.17,17.0]
[1672927992128,20.0,13.181,13.171,20.0]
[1672927993581,194.6873,13.183,13.171,20.0]
[1672927993825,20.0,13.181,13.171,20.0]
[1672927996025,17.0,13.18,13.171,20.0]
[1672927997815,23.49,13.18,13.171,20.0]
[1672927998011,23.49,13.18,13.169,20.0]
[1672927998012,20.0,13.179,13.169,20.0]
[1672927998221,17.0,13.178,13.169,20.0]
[1672927998838,17.0,13.178,13.16,125.8244]
[1672927999055,20.0,13.177,13.163,20.0]
[1672927999261,20.0,13.175,13.162,20.0]
[1672927999472,43.9545261,13.178,13.164,22.41737149]
[1672927999687,118.1138,13.181,13.165,20.0]
[1672927999897,118.1138,13.181,13.166,20.0]
[1672928000113,118.1138,13.181,13.168,20.0]
[1672928000422,118.1138,13.181,13.169,37.0]
[1672928000629,118.1138,13.181,13.169,59.41737149]
[1672928000839,118.1138,13.181,13.17,22.41737149]
[1672928001051,118.1138,13.181,13.171,37.0]
[1672928001467,118.1138,13.181,13.172,22.41737149]
[1672928001689,17.0,13.18,13.172,22.41737149]
[1672928001901,37.0,13.18,13.173,20.0]
[1672928002732,17.0,13.18,13.173,20.0]
[1672928002942,17.0,13.18,13.17,20.0]
[1672928003364,37.0,13.18,13.17,20.0]
[1672928003580,37.0,13.18,13.168,20.0]
[1672928003791,93.95,13.18,13.168,20.0]
[1672928004216,73.95,13.18,13.168,20.0]
[1672928004436,73.95,13.18,13.169,22.41737149]
[1672928004643,73.95,13.18,13.17,20.0]
[1672928005084,73.95,13.18,13.171,20.0]
[1672928007488,73.95,13.18,13.169,20.0]
[1672928008199,80.45,13.18,13.169,20.0]
[1672928009499,23.5,13.18,13.169,20.0]
[1672928009688,80.45,13.18,13.169,20.0]
[1672928010441,80.45,13.18,13.171,20.0]
[1672928010754,23.5,13.18,13.171,40.0]
[1672928010966,23.5,13.18,13.172,20.0]
[1672928012015,23.5,13.18,13.171,20.0]
[1672928019479,80.45,13.18,13.171,20.0]
[1672928020625,23.5,13.18,13.171,20.0]
[1672928021485,17.0,13.18,13.171,20.0]
[1672928023795,118.1138,13.181,13.171,20.0]
[1672928031803,73.95,13.18,13.171,20.0]
[1672928032111,20.0,13.179,13.169,20.0]
[1672928032321,17.0,13.178,13.17,20.0]
[1672928033056,37.0,13.179,13.169,20.0]
[1672928034847,56.96,13.178,13.169,20.0]
[1672928035158,56.96,13.178,13.168,20.0]
[1672928035474,93.95,13.179,13.168,20.0]
[1672928036005,73.95,13.179,13.168,20.0]
[1672928036192,17.0,13.179,13.168,20.0]
[1672928039366,17.0,13.179,13.169,20.0]
[1672928039566,17.0,13.179,13.169,37.0]
[1672928039996,17.0,13.179,13.17,20.0]
[1672928043969,17.0,13.179,13.168,20.0]
[1672928044180,17.0,13.179,13.169,20.0]
[1672928044423,17.0,13.179,13.17,20.0]
[1672928045674,56.95,13.18,13.17,20.0]
[1672928046619,118.1138,13.181,13.171,17.0]
[1672928046807,118.1138,13.181,13.172,20.0]
[1672928047987,118.1138,13.181,13.173,17.0]
[1672928048293,118.1138,13.181,13.174,20.0]
[1672928050827,56.94,13.182,13.174,20.0]
[1672928051021,20.0,13.186,13.176,20.0]
[1672928051230,56.93,13.185,13.176,20.0]
[1672928051456,56.93,13.185,13.174,20.0]
[1672928051646,56.93,13.185,13.175,17.0]
[1672928051856,56.93,13.185,13.176,20.0]
[1672928053115,56.92,13.187,13.176,20.0]
[1672928053534,20.0,13.186,13.176,20.0]
[1672928053927,20.0,13.184,13.176,20.0]
[1672928054146,56.93,13.185,13.176,20.0]
[1672928055878,56.92,13.186,13.176,20.0]
[1672928056613,20.0,13.185,13.176,20.0]
[1672928056819,20.0,13.183,13.176,20.0]
[1672928057242,20.0,13.185,13.176,20.0]
[1672928057465,20.0,13.183,13.176,20.0]
[1672928057786,56.93,13.184,13.176,20.0]
[1672928057980,56.92,13.186,13.176,20.0]
[1672928058196,20.0,13.185,13.176,20.0]
[1672928058410,20.0,13.187,13.177,17.0]
[1672928058411,56.93,13.184,13.177,17.0]
[1672928058729,56.92,13.186,13.177,17.0]
[1672928059131,56.92,13.187,13.177,17.0]
[1672928059334,20.0,13.186,13.177,17.0]
[1672928059548,56.93,13.185,13.177,17.0]
[1672928059977,56.92,13.186,13.177,17.0]
[1672928060828,79.33737149,13.187,13.177,17.0]
[1672928061376,79.33737149,13.187,13.176,20.0]
[1672928061551,17.0,13.186,13.172,20.0]
[1672928061766,56.93,13.185,13.173,37.0]
[1672928062084,56.93,13.185,13.175,20.0]
[1672928062293,56.93,13.185,13.176,17.0]
[1672928063442,76.92,13.187,13.176,17.0]
[1672928064394,20.0,13.186,13.176,17.0]
[1672928064605,56.93,13.185,13.176,17.0]
[1672928065011,56.92,13.186,13.176,17.0]
[1672928065227,20.0,13.186,13.176,17.0]
[1672928065440,56.93,13.185,13.176,17.0]
[1672928065641,20.0,13.186,13.176,17.0]
[1672928065851,56.93,13.185,13.176,17.0]
[1672928066283,56.92,13.187,13.176,17.0]
[1672928068907,56.92,13.187,13.175,17.0]
[1672928069119,56.92,13.187,13.176,20.0]
[1672928069443,20.0,13.185,13.174,20.0]
[1672928069654,56.93,13.184,13.174,20.0]
[1672928070055,56.93,13.184,13.174,42.41737149]
[1672928071322,56.93,13.185,13.174,42.41737149]
[1672928071853,56.93,13.185,13.175,17.0]
[1672928072068,56.93,13.185,13.176,20.0]
[1672928072470,56.93,13.185,13.177,17.0]
[1672928072680,56.92,13.186,13.177,17.0]
[1672928083011,20.0,13.186,13.177,17.0]
[1672928083219,20.0,13.184,13.176,20.0]
[1672928083533,20.0,13.184,13.175,20.0]
[1672928083941,56.94,13.183,13.175,20.0]
[1672928084570,20.0,13.184,13.175,20.0]
[1672928085843,56.93,13.185,13.175,20.0]
[1672928086052,56.93,13.185,13.176,39.41737149]
[1672928088073,20.0,13.183,13.172,20.0]
[1672928088383,20.0,13.183,13.173,22.41737149]
[1672928088573,20.0,13.183,13.174,20.0]
[1672928088784,20.0,13.184,13.174,20.0]
[1672928088987,20.0,13.184,13.175,22.41737149]
[1672928089431,20.0,13.184,13.176,17.0]
[1672928089649,20.0,13.184,13.176,37.0]
[1672928089829,56.93,13.185,13.176,59.41737149]
[1672928093308,20.0,13.185,13.176,59.41737149]
[1672928097317,56.92,13.186,13.176,59.41737149]
[1672928097713,20.0,13.185,13.176,59.41737149]
[1672928098895,56.92,13.186,13.176,59.41737149]
[1672928099112,76.92,13.187,13.176,59.41737149]
[1672928099537,56.92,13.187,13.176,59.41737149]
[1672928106150,56.92,13.187,13.177,20.0]
[1672928106469,174.4755,13.188,13.178,39.41737149]
[1672928106674,117.5655,13.188,13.178,39.41737149]
[1672928106889,117.5655,13.188,13.179,22.41737149]
[1672928107095,117.5655,13.188,13.18,17.0]
[1672928107501,117.5655,13.188,13.181,22.41737149]
[1672928108545,16.3051091,13.197,13.181,22.41737149]
[1672928108875,117.8755,13.196,13.182,37.0]
[1672928109196,117.8755,13.196,13.183,42.41737149]
[1672928109413,117.8755,13.196,13.185,20.0]
[1672928109610,117.8755,13.196,13.187,20.0]
[1672928110454,117.8755,13.196,13.188,17.0]
[1672928110787,117.8755,13.196,13.187,20.0]
[1672928110975,117.8755,13.196,13.188,17.0]
[1672928111827,117.8755,13.196,13.188,39.41737149]
[1672928113627,16.3051091,13.197,13.188,39.41737149]
[1672928118348,16.3051091,13.197,13.189,20.0]
[1672928118564,16.3051091,13.197,13.19,17.0]
[1672928120128,16.3051091,13.197,13.191,22.41737149]
[1672928120453,16.3051091,13.197,13.189,20.0]
[1672928121939,16.3051091,13.197,13.19,17.0]
[1672928123275,16.3051091,13.197,13.192,20.0]
[1672928123713,16.3051091,13.197,13.193,22.41737149]
[1672928125276,16.3051091,13.197,13.187,20.0]
[1672928125911,16.3051091,13.197,13.189,20.0]
[1672928126236,16.3051091,13.197,13.19,42.41737149]
[1672928126551,16.3051091,13.197,13.191,37.0]
[1672928126757,16.3051091,13.197,13.192,20.0]
[1672928127073,16.3051091,13.197,13.193,37.0]
[1672928127282,9.1e-06,13.197,13.194,20.0]
[1672928127491,9.1e-06,13.197,13.196,20.0]
[1672928127697,9.1e-06,13.197,13.196,40.0]
[1672928127898,9.1e-06,13.197,13.196,20.0]
[1672928128316,9.1e-06,13.197,13.196,17.0]
[1672928128528,9.1e-06,13.197,13.196,37.0]
[1672928129367,9.1e-06,13.197,13.196,20.0]
[1672928129598,9.1e-06,13.197,13.195,20.0]
[1672928129818,9.1e-06,13.197,13.194,20.0]
[1672928130003,9.1e-06,13.197,13.195,17.0]
[1672928130214,9.1e-06,13.197,13.196,20.0]
[1672928130447,9.1e-06,13.197,13.196,37.0]
[1672928132527,9.1e-06,13.197,13.196,20.0]
[1672928132949,9.1e-06,13.197,13.194,20.0]
[1672928133159,9.1e-06,13.197,13.195,17.0]
[1672928133383,9.1e-06,13.197,13.196,20.0]
[1672928134012,9.1e-06,13.197,13.195,20.0]
[1672928134223,9.1e-06,13.197,13.194,20.0]
[1672928136746,9.1e-06,13.197,13.195,17.0]
[1672928136940,9.1e-06,13.197,13.196,20.0]
[1672928137361,9.1e-06,13.197,13.196,37.0]
[1672928137780,9.1e-06,13.197,13.196,20.0]
[1672928137991,9.1e-06,13.197,13.194,42.41737149]
[1672928138430,9.1e-06,13.197,13.194,20.0]
[1672928138855,56.3400091,13.206,13.194,20.0]
[1672928139165,17.0,13.205,13.194,20.0]
[1672928139359,56.85,13.204,13.194,20.0]
[1672928140647,56.85,13.204,13.195,17.0]
[1672928140955,17.0,13.203,13.196,20.0]
[1672928141146,73.84,13.205,13.196,20.0]
[1672928141364,38.52795694,13.203,13.181,118.1725]
[1672928141568,32.73,13.2,13.185,20.0]
[1672928141778,20.0,13.198,13.184,20.0]
[1672928141990,73.88,13.197,13.184,20.0]
[1672928142544,20.0,13.196,13.184,20.0]
[1672928142840,17.0,13.195,13.184,20.0]
[1672928143062,126.0311,13.195,13.183,20.0]
[1672928143248,126.0311,13.195,13.182,114.9157]
[1672928143464,20.0,13.194,13.182,114.9157]
[1672928143667,17.0,13.193,13.182,114.9157]
[1672928143900,165.9111,13.195,13.183,20.0]
[1672928144233,165.9111,13.195,13.184,20.0]
[1672928144443,165.9111,13.195,13.185,17.0]
[1672928144630,165.9111,13.195,13.186,20.0]
[1672928146019,165.9111,13.195,13.187,17.0]
[1672928146332,109.0311,13.195,13.187,17.0]
[1672928148854,56.87,13.198,13.187,39.41737149]
[1672928149053,56.87,13.199,13.188,20.0]
[1672928149382,56.87,13.199,13.189,17.0]
[1672928152740,56.87,13.199,13.187,20.0]
[1672928153050,56.87,13.199,13.188,17.0]
[1672928153554,56.87,13.199,13.189,20.0]
[1672928153769,56.87,13.199,13.19,17.0]
[1672928155587,6.49,13.21,13.191,155.36334568]
[1672928155795,6.49,13.21,13.193,20.0]
[1672928155995,56.83,13.207,13.194,20.0]
[1672928156197,20.0,13.206,13.194,20.0]
[1672928156409,56.84,13.205,13.194,20.0]
[1672928157040,17.0,13.204,13.194,20.0]
[1672928157245,56.85,13.203,13.194,20.0]
[1672928159042,168.4769,13.207,13.196,20.0]
[1672928159252,168.4769,13.207,13.197,17.0]
[1672928160110,168.4769,13.207,13.195,20.0]
[1672928160314,168.4769,13.207,13.196,20.0]
[1672928160540,37.0,13.206,13.196,20.0]
[1672928161283,17.0,13.206,13.196,20.0]
[1672928161461,56.84,13.205,13.196,20.0]
[1672928162508,56.84,13.205,13.194,20.0]
[1672928162836,56.84,13.205,13.195,17.0]
[1672928163035,56.84,13.205,13.196,20.0]
[1672928164941,56.84,13.205,13.197,17.0]
[1672928165264,168.4769,13.207,13.198,20.0]
[1672928165576,168.4769,13.207,13.199,17.0]
[1672928166403,56.83,13.207,13.199,17.0]
[1672928166616,76.797132,13.208,13.199,17.0]
[1672928169679,19.967132,13.208,13.2,6.55]
[1672928169999,19.967132,13.208,13.201,37.0]
[1672928170311,3.2e-05,13.208,13.202,20.0]
[1672928170527,3.2e-05,13.208,13.203,37.0]
[1672928170744,3.2e-05,13.208,13.203,96.16777496]
[1672928170924,3.2e-05,13.208,13.204,20.0]
[1672928171134,3.2e-05,13.208,13.205,17.0]
[1672928171343,3.2e-05,13.208,13.206,20.0]
[1672928172193,3.2e-05,13.208,13.207,20.0]
[1672928172825,3.2e-05,13.208,13.207,37.0]
[1672928176825,3.2e-05,13.208,13.207,20.0]
[1672928177548,3.2e-05,13.208,13.207,79.16777496]
[1672928177978,0.0002955,13.215,13.207,201.40345088]
[1672928178190,56.74,13.229,13.209,20.0]
[1672928178508,56.74,13.229,13.211,20.0]
[1672928178830,56.74,13.229,13.213,20.0]
[1672928179015,56.74,13.229,13.214,20.0]
[1672928179225,56.74,13.229,13.215,20.0]
[1672928179446,168.7525,13.229,13.216,20.0]
[1672928181031,17.0,13.228,13.217,17.0]
[1672928181223,56.75,13.227,13.216,20.0]
[1672928181554,57.0,13.226,13.204,20.0]
[1672928181761,6.55,13.22,13.202,20.0]
[1672928181974,189.8537,13.219,13.202,20.0]
[1672928182294,20.0,13.218,13.202,20.0]
[1672928182500,20.0,13.216,13.202,20.0]
[1672928183233,20.0,13.214,13.202,20.0]
[1672928183429,56.8,13.215,13.202,20.0]
[1672928184819,56.8,13.215,13.203,20.0]
[1672928185004,56.8,13.215,13.204,17.0]
[1672928185214,56.8,13.215,13.206,20.0]
[1672928185447,56.8,13.215,13.207,17.0]
[1672928188160,56.8,13.215,13.203,20.0]
[1672928188584,56.8,13.215,13.204,17.0]
[1672928188799,56.8,13.215,13.205,20.0]
[1672928189125,113.6417,13.216,13.206,17.0]
[1672928191753,56.8,13.215,13.206,17.0]
[1672928191960,56.8,13.215,13.205,20.0]
[1672928192173,113.6417,13.216,13.203,20.0]
[1672928192579,56.8,13.215,13.203,20.0]
[1672928193961,56.8,13.215,13.205,20.0]
[1672928194154,56.8,13.215,13.206,17.0]
[1672928196691,113.6417,13.216,13.206,39.41737149]
[1672928198170,56.8,13.215,13.206,39.41737149]
[1672928199101,113.6417,13.216,13.206,39.41737149]
[1672928203414,113.6417,13.216,13.206,22.41737149]
[1672928203829,113.6417,13.216,13.203,20.0]
[1672928204040,113.6417,13.216,13.205,20.0]
[1672928204363,113.6417,13.216,13.206,20.0]
[1672928204572,113.6417,13.216,13.206,37.0]
[1672928207306,20.0,13.215,13.206,37.0]
[1672928208041,17.0,13.214,13.206,20.0]
[1672928208259,17.0,13.214,13.205,20.0]
[1672928208438,17.0,13.214,13.203,20.0]
[1672928210144,76.81,13.213,13.203,20.0]
[1672928210552,76.81,13.213,13.201,20.0]
[1672928210771,20.0,13.213,13.201,20.0]
[1672928211191,20.0,13.213,13.202,17.0]
[1672928211506,20.0,13.213,13.203,20.0]
[1672928211716,20.0,13.213,13.204,17.0]
[1672928211924,174.9993,13.214,13.205,20.0]
[1672928212123,118.1993,13.214,13.205,20.0]
[1672928212558,118.1993,13.214,13.206,22.41737149]
[1672928212960,118.1993,13.214,13.205,20.0]
[1672928214230,118.1993,13.214,13.206,22.41737149]
[1672928214653,118.1993,13.214,13.205,20.0]
[1672928214851,118.1993,13.214,13.206,17.0]
[1672928215061,118.1993,13.214,13.205,20.0]
[1672928216533,118.1993,13.214,13.206,17.0]
[1672928219068,118.1993,13.214,13.205,20.0]
[1672928219281,118.1993,13.214,13.203,20.0]
[1672928219483,118.1993,13.214,13.204,17.0]
[1672928219695,118.1993,13.214,13.206,20.0]
[1672928220231,118.1993,13.214,13.204,17.0]
[1672928220433,118.1993,13.214,13.206,20.0]
[1672928220647,118.1993,13.214,13.205,20.0]
[1672928222440,118.1993,13.214,13.206,17.0]
[1672928225363,113.6417,13.216,13.206,39.41737149]
[1672928225791,113.6417,13.216,13.205,20.0]
[1672928227139,113.6417,13.216,13.204,20.0]
[1672928227353,20.0,13.214,13.204,20.0]
[1672928227784,73.8,13.215,13.204,20.0]
[1672928229040,20.0,13.214,13.202,20.0]
[1672928229367,17.0,13.213,13.203,20.0]
[1672928229580,73.81,13.213,13.203,20.0]
[1672928230743,17.0,13.213,13.203,20.0]
[1672928231055,56.8,13.214,13.204,17.0]
[1672928231268,113.6417,13.216,13.205,20.0]
[1672928232522,20.0,13.215,13.205,20.0]
[1672928232738,56.8,13.214,13.205,20.0]
[1672928233048,20.0,13.212,13.201,20.0]
[1672928233251,73.82,13.211,13.201,20.0]
[1672928233460,20.0,13.21,13.201,20.0]
[1672928234014,73.82,13.211,13.201,20.0]
[1672928234210,56.82,13.211,13.201,20.0]
[1672928234395,56.8,13.214,13.201,20.0]
[1672928234708,20.0,13.212,13.201,20.0]
[1672928234919,20.0,13.21,13.201,20.0]
[1672928235135,56.82,13.211,13.201,20.0]
[1672928235341,56.81,13.212,13.201,20.0]
[1672928235568,56.81,13.212,13.203,20.0]
[1672928235782,76.81,13.212,13.202,17.0]
[1672928235973,76.81,13.212,13.203,20.0]
[1672928236183,20.0,13.211,13.203,20.0]
[1672928238728,76.81,13.212,13.203,20.0]
[1672928239991,56.81,13.212,13.203,20.0]
[1672928240391,127.0701,13.213,13.203,20.0]
[1672928241026,20.0,13.212,13.203,20.0]
[1672928241252,17.0,13.211,13.203,20.0]
[1672928241454,17.0,13.211,13.201,20.0]
[1672928244089,56.81,13.212,13.202,17.0]
[1672928244309,110.0701,13.213,13.203,20.0]
[1672928245770,20.0,13.212,13.203,20.0]
[1672928245954,20.0,13.212,13.202,20.0]
[1672928246165,20.0,13.212,13.203,20.0]
[1672928246397,17.0,13.211,13.203,20.0]
[1672928247012,17.0,13.211,13.201,20.0]
[1672928247435,17.0,13.211,13.202,20.0]
[1672928247645,17.0,13.211,13.203,20.0]
[1672928247856,17.0,13.212,13.203,20.0]
[1672928248076,37.0,13.212,13.203,20.0]
[1672928248291,37.0,13.212,13.202,20.0]
[1672928248504,37.0,13.212,13.201,20.0]
[1672928249445,37.0,13.212,13.201,42.41737149]
[1672928250920,17.0,13.212,13.201,42.41737149]
[1672928251342,110.0701,13.213,13.202,17.0]
[1672928251561,110.0701,13.213,13.203,40.0]
[1672928251744,110.0701,13.213,13.203,42.41737149]
[1672928253113,110.0701,13.213,13.204,22.41737149]
[1672928253332,110.0701,13.213,13.205,20.0]
[1672928255336,56.8,13.215,13.205,42.41737149]
[1672928255547,115.2008,13.218,13.205,42.41737149]
[1672928255758,56.79,13.217,13.205,42.41737149]
[1672928259322,115.2008,13.218,13.205,42.41737149]
[1672928259535,56.79,13.217,13.205,42.41737149]
[1672928259948,37.0,13.215,13.205,42.41737149]
[1672928260804,17.0,13.215,13.205,42.41737149]
[1672928261964,73.8,13.215,13.205,42.41737149]
[1672928262483,17.0,13.215,13.205,42.41737149]
[1672928264677,73.8,13.215,13.205,42.41737149]
[1672928266696,17.0,13.215,13.205,42.41737149]
[1672928267420,20.0,13.214,13.205,42.41737149]
[1672928267634,17.0,13.213,13.205,42.41737149]
[1672928270901,17.0,13.214,13.205,42.41737149]
[1672928271214,37.0,13.214,13.205,42.41737149]
[1672928271426,17.0,13.214,13.205,42.41737149]
[1672928272985,37.0,13.215,13.205,42.41737149]
[1672928273841,93.8,13.215,13.205,42.41737149]
[1672928274051,93.8,13.215,13.205,20.0]
[1672928274249,20.0,13.214,13.205,20.0]
[1672928274467,17.0,13.213,13.206,20.0]
[1672928274787,17.0,13.213,13.203,20.0]
[1672928275005,6.52,13.21,13.203,20.0]
[1672928278049,17.0,13.209,13.203,20.0]
[1672928281721,6.52,13.21,13.203,20.0]
[1672928282255,6.52,13.21,13.201,20.0]
[1672928282471,6.52,13.21,13.202,20.0]
[1672928283182,76.8,13.215,13.202,42.41737149]
[1672928283856,76.8,13.215,13.202,20.0]
[1672928284248,6.47,13.21,13.202,20.0]
[1672928284466,76.8,13.215,13.203,22.41737149]
[1672928284673,76.8,13.215,13.204,20.0]
[1672928284893,76.8,13.215,13.202,20.0]
[1672928285416,76.8,13.215,13.202,42.41737149]
[1672928285620,76.8,13.215,13.203,20.0]
[1672928285826,56.8,13.215,13.204,20.0]
[1672928286821,37.0,13.214,13.204,20.0]
[1672928287317,17.0,13.214,13.204,20.0]
[1672928290163,17.0,13.214,13.203,20.0]
[1672928290380,37.0,13.214,13.203,20.0]
[1672928293528,56.8,13.215,13.203,20.0]
[1672928294698,20.0,13.213,13.203,20.0]
[1672928296258,37.0,13.214,13.203,20.0]
[1672928296662,17.0,13.214,13.203,20.0]
[1672928297519,17.0,13.215,13.203,20.0]
[1672928297752,37.0,13.215,13.203,20.0]
[1672928299515,20.0,13.213,13.203,20.0]
[1672928299720,17.0,13.212,13.203,20.0]
[1672928301622,37.0,13.213,13.203,20.0]
[1672928301960,17.0,13.213,13.203,20.0]
[1672928302459,113.6417,13.216,13.204,17.0]
[1672928302886,113.6417,13.216,13.205,20.0]
[1672928303708,17.0,13.215,13.205,20.0]
[1672928305176,113.6417,13.216,13.205,20.0]
[1672928305433,113.6417,13.216,13.206,37.0]
[1672928306012,113.6417,13.216,13.205,20.0]
[1672928306333,113.6417,13.216,13.204,20.0]
[1672928307084,17.0,13.215,13.204,20.0]
[1672928307503,37.0,13.215,13.204,20.0]
[1672928308127,17.0,13.215,13.204,20.0]
[1672928310207,113.6417,13.216,13.204,20.0]
[1672928310442,113.6417,13.216,13.206,20.0]
[1672928310861,113.6417,13.216,13.207,17.0]
[1672928311468,113.6417,13.216,13.206,20.0]
[1672928313037,113.6417,13.216,13.207,17.0]
[1672928315157,105.57772615,13.22,13.207,17.0]
[1672928315366,17.0,13.219,13.207,17.0]
[1672928315544,76.79,13.218,13.207,17.0]
[1672928315754,20.0,13.218,13.207,17.0]
[1672928315960,73.78,13.219,13.207,17.0]
[1672928316515,56.78,13.219,13.207,17.0]
[1672928319546,56.78,13.219,13.206,17.0]
[1672928324707,56.78,13.219,13.206,20.0]
[1672928325015,56.78,13.219,13.207,17.0]
[1672928325954,17.0,13.218,13.207,17.0]
[1672928326166,20.0,13.217,13.204,20.0]
[1672928326375,76.79,13.217,13.203,40.0]
[1672928327521,76.79,13.217,13.204,17.0]
[1672928327733,76.79,13.217,13.205,20.0]
[1672928328058,118.2205,13.216,13.206,17.0]
[1672928328279,20.0,13.215,13.205,20.0]
[1672928328493,20.0,13.215,13.204,20.0]
[1672928329221,118.2205,13.216,13.204,20.0]
[1672928329421,118.2205,13.216,13.205,17.0]
[1672928329623,118.2205,13.216,13.206,20.0]
[1672928336489,17.0,13.215,13.206,20.0]
[1672928336808,20.0,13.214,13.206,20.0]
[1672928337008,93.8,13.215,13.204,20.0]
[1672928337323,93.8,13.215,13.203,20.0]
[1672928339537,73.8,13.215,13.203,20.0]
[1672928341640,20.0,13.214,13.203,20.0]
[1672928341831,6.52,13.21,13.201,51.51]
[1672928342169,20.0,13.208,13.201,51.51]
[1672928342375,20.0,13.206,13.201,51.51]
[1672928342695,56.83,13.207,13.201,51.51]